Cogmind - Beta 16.1 @@@ ROGUE MODE // 2026.04.07 @ 21:16:00 Player: obl-vn Result: Self-destructed Performance ------------- Evolutions (6) 3000 Regions Visited (13) 2600 Robots Destroyed (133) 665 Value Destroyed (4827) 4827 Prototype IDs (38) 760 Alien Tech Used (0) 0 Bonus (915) 915 TOTAL SCORE: 12767 Bonus ------- High Alert Combat Kills 278 Follower Combat Kills 37 Aligned with FarCom 300 Met Data Miner 300 Cogmind --------- Core Integrity 1129/1150 Matter 80/300 Energy 290/290 System Corruption 0% Temperature Cool (0) Movement Hovering (43) Location -4/Factory Parts ------- > --- POWER (2) -------- Improved Deuterium Engine > --- PROPULSION (6) --- Gravmag System Cooled Airjet Cooled Airjet Gravmag Array > --- UTILITY (9) ------ Power Amplifier Power Amplifier Power Amplifier Medium Storage Unit Advanced Weight Redist. System Advanced Signal Interpreter Transmission Jammer Hardened Medium Armor Plating Graphene Brace > --- WEAPON (2) ------- Shock Bomb Launcher > --- INVENTORY (10) --- Improved Cooling System Advanced Cooling System Large Storage Unit Energy Well (350) Advanced ECM Suite Reaction Control System Improved Weapon Shielding Peak State ------------ > --- POWER ------------ Improved Deuterium Engine > --- PROPULSION ------- Gravmag System Cooled Airjet Cooled Airjet Cooled Airjet Gravmag Array > --- UTILITY ---------- Power Amplifier Power Amplifier Power Amplifier Medium Storage Unit Advanced Weight Redist. System Advanced Signal Interpreter Transmission Jammer Hardened Medium Armor Plating Graphene Brace > --- WEAPON ----------- Shock Bomb Launcher > --- INVENTORY -------- Improved Cooling System Advanced Cooling System Large Storage Unit Energy Well Advanced ECM Suite Reaction Control System Improved Weapon Shielding [Rating: 76] Favorites ----------- Power Heavy Ion Engine Engine Heavy Ion Engine Power Core Light Nuclear Core Propulsion Light Treads Treads Light Treads Leg Carbon-fiber Leg Wheel Wheel Hover Unit Cooled Airjet Utility Large Storage Unit Device Transmission Jammer Storage Large Storage Unit Processor Modified TNC Hackware Hacking Suite Protection Improved Light Armor Plating Weapon Enhanced Autogun Ballistic Gun Enhanced Autogun Ballistic Cannon Gauss Cannon Launcher Shock Bomb Launcher Build | -11 -10 -10 -10 -9 -8 -7 -7 -7 -7 -6 -6 -5 -4 ------- Run | Yrd Mat Min Exi Min Mat Fac Low Low Dat Pro Fac Fac Fac Slots Evolved 12 | . . . . . 4 2 . . . . 2 2 2 Power 1 | . . . . . . . . . . . 1 . . Propulsion 4 | . . . . . 1 . . . . . 1 2 . Utility 7 | . . . . . 3 2 . . . . . . 2 Weapon . | . . . . . . . . . . . . . . Parts Attached 102 | 6 3 . . . 17 40 5 7 . 10 9 3 2 Power 9 | 1 1 . . . 1 3 . 2 . . 1 . . Engine 8 | 1 1 . . . 1 2 . 2 . . 1 . . Core 1 | . . . . . . 1 . . . . . . . Reactor . | . . . . . . . . . . . . . . Propulsion 29 | 2 . . . . 7 9 3 1 . 4 2 1 . Treads 17 | 2 . . . . 7 8 . . . . . . . Leg 1 | . . . . . . . . . . 1 . . . Wheel 4 | . . . . . . . 3 1 . . . . . Hover 7 | . . . . . . 1 . . . 3 2 1 . Flight . | . . . . . . . . . . . . . . Utility 52 | 1 2 . . . 6 23 2 3 . 5 6 2 2 Device 20 | . . . . . . 10 . 1 . 3 5 . 1 Storage 4 | 1 1 . . . . 1 . . . 1 . . . Processor 10 | . 1 . . . 2 4 . 1 . . 1 1 . Hackware 3 | . . . . . . 2 . . . . . 1 . Protection 15 | . . . . . 4 6 2 1 . 1 . . 1 Artifact . | . . . . . . . . . . . . . . Weapon 12 | 2 . . . . 3 5 . 1 . 1 . . . Energy Gun . | . . . . . . . . . . . . . . Energy Cannon . | . . . . . . . . . . . . . . Ballistic Gun 6 | 2 . . . . 2 2 . . . . . . . Ballistic Cannon 4 | . . . . . 1 2 . 1 . . . . . Launcher 2 | . . . . . . 1 . . . 1 . . . Special Weapon . | . . . . . . . . . . . . . . Impact Weapon . | . . . . . . . . . . . . . . Slashing Weapon . | . . . . . . . . . . . . . . Piercing Weapon . | . . . . . . . . . . . . . . Special Melee Weapon . | . . . . . . . . . . . . . . Unidentified Prototypes 4 | . . . . . 2 2 . . . . . . . Parts Lost 29 | . . . . . . 3 5 4 . 12 4 . 1 Power 3 | . . . . . . 1 . 1 . . 1 . . Propulsion 10 | . . . . . . . 3 1 . 4 1 . 1 Utility 13 | . . . . . . 2 1 2 . 6 2 . . Weapon 3 | . . . . . . . 1 . . 2 . . . Highest Loss Streak 5 | . . . . . . 1 4 3 . 5 2 . 1 To Critical Strikes . | . . . . . . . . . . . . . . Average Backups 13 | 1 8 10 10 11 14 14 15 15 14 9 6 6 6 Power 1 | . 2 3 3 3 3 2 1 . 1 1 . . . Propulsion 4 | . 3 4 4 4 4 4 5 5 5 3 1 . . Utility 4 | . . 2 2 3 2 5 7 7 7 4 5 6 6 Weapon 2 | 1 1 1 1 1 3 3 2 1 1 . . . . Tool/Special . | . . . . . . . . . . . . . . Unused Backups 15 | . . . . . 5 8 . . . . . . 2 Power 3 | . . . . . 1 2 . . . . . . . Propulsion 3 | . . . . . 1 2 . . . . . . . Utility 5 | . . . . . 1 2 . . . . . . 2 Weapon 3 | . . . . . 2 1 . . . . . . . Tool/Special 1 | . . . . . . 1 . . . . . . . Average Slot Usage (%) 95 | . 92 100 100 100 96 99 90 86 88 81 87 81 77 Engine 7 | . 14 14 14 14 9 6 7 6 7 7 12 5 5 Treads 19 | . 28 28 28 28 26 22 14 . . . . . . Wheel 1 | . . . . . . . 6 15 23 6 . . . Hover 2 | . . . . . . . . . . 12 25 28 24 Device 7 | . . . . . . 6 11 5 7 22 28 29 28 Storage 7 | . 14 14 14 14 9 7 7 7 7 7 6 5 5 Processor 17 | . 7 14 14 14 17 22 23 17 15 4 . . 5 Protection 12 | . . . . . 15 14 9 18 23 9 6 4 3 Ballistic Gun 7 | . 28 28 28 28 9 7 . . . . . . . Ballistic Cannon 6 | . . . . . 8 6 7 13 4 4 . . . Peak Build Rating 76 | 6 9 9 10 10 32 51 51 44 42 46 58 66 76 Average Rating 37 | 3 8 9 9 10 28 43 45 39 35 38 51 64 69 On Entrance 29 | . 6 9 9 10 10 31 51 42 42 42 46 55 66 Avg Prop Armor Cover (%) 7 | . . . . . . . . . . 9 . . 5 Naked Turns . | . . . . . . . . . . . . . . Heaviest Build 66 | 12 31 31 31 31 43 66 53 54 54 54 40 32 39 Greatest Support 74 | 40 40 40 40 40 63 74 71 38 38 45 57 62 62 Greatest Overweight (x) 13 | . . . . . . 1 13 2 1 9 . . 1 Average Overweight (x) . | . . . . . . . . 1 1 1 . . . Largest Inventory Capacity 15 | 8 15 15 15 15 15 15 15 15 15 15 10 10 10 Average Capacity 14 | 6 9 15 15 15 15 15 15 15 15 12 10 10 10 Most Carried 15 | 5 10 10 12 11 15 15 15 15 15 15 10 8 8 Average Carried 13 | 1 8 10 10 11 14 14 15 14 14 9 6 6 6 Final Capacity 15 | 8 15 15 15 15 15 15 15 15 15 10 10 10 10 Final Carried 15 | 1 10 10 11 11 15 15 15 15 15 7 8 6 7 Class Distribution -------------------- 92% | Mutant 5% | Derelict-Mutant Dominant Class ---------------- Mutant | -10/Materials Mutant | -10/Mines Mutant | -10/Exiles Mutant | -9/Mines Mutant | -8/Materials Mutant | -7/Factory Mutant | -7/Lower Caves Derelict-Mutant | -7/Lower Caves Derelict-Mutant | -7/Data Miner Infiltrator-Mutant | -6/Proximity Caves Mutant | -6/Factory Mutant | -5/Factory Mutant | -4/Factory Resources | -11 -10 -10 -10 -9 -8 -7 -7 -7 -7 -6 -6 -5 -4 ----------- Run | Yrd Mat Min Exi Min Mat Fac Low Low Dat Pro Fac Fac Fac Matter Collected 5021 | 162 142 . 264 . 801 2095 340 453 . 546 218 . . Remotely . | . . . . . . . . . . . . . . Salvage Created 4851 | . 220 . . . 990 2192 267 72 . 430 560 45 75 Parts 254 | . 17 . . . 63 102 15 4 . 12 34 4 3 Haulers Intercepted 9 | . 1 . . . 2 5 . . . . 1 . . Recyclers Shooed 4 | . . . . . . 3 . . . . 1 . . Parts Field Recycled . | . . . . . . . . . . . . . . Retrieved Matter . | . . . . . . . . . . . . . . Parts Self-Destructed 34 | . . . . . . . 15 9 . 10 . . . Prevented 10 | . . . . . . . . 6 . 4 . . . Parts Restored . | . . . . . . . . . . . . . . Kills | -11 -10 -10 -10 -9 -8 -7 -7 -7 -7 -6 -6 -5 -4 ------- Run | Yrd Mat Min Exi Min Mat Fac Low Low Dat Pro Fac Fac Fac Combat Hostiles Destroyed 99 | . 5 . . . 21 36 12 4 . 13 7 . 1 Guns 26 | . 5 . . . 5 16 . . . . . . . Cannons 60 | . . . . . 16 19 12 4 . 9 . . . AOE 10 | . . . . . . 1 . . . 3 5 . 1 Classes Destroyed 16 | . 5 . . . 2 7 . 1 . . 1 . . Worker 7 | . 1 . . . . 2 . . . . 2 1 1 Builder 1 | . . . . . . . . . . . 1 . . Hauler 9 | . 1 . . . 2 5 . . . . 1 . . Recycler 7 | . . . . . . 7 . . . . . . . Carrier 1 | . . . . . . 1 . . . . . . . Mechanic 2 | . . . . . 1 1 . . . . . . . Operator 2 | . . . . . . 1 . . . . . 1 . Drone 2 | . . . . . . 1 . . . . 1 . . Watcher 7 | . 1 . . . 3 3 . . . . . . . Swarmer 26 | . 3 . . . 4 7 9 . . 3 . . . Grunt 31 | . 2 . . . 9 7 1 2 . 8 1 . 1 Brawler 4 | . . . . . . 2 . 1 . 1 . . . Duelist 2 | . . . . . . 1 . . . 1 . . . Sentry 21 | . . . . . 8 9 2 . . . 2 . . Hunter 4 | . . . . . . . . 1 . . 3 . . Programmer 9 | . . . . . . 9 . . . . . . . Best Kill Streak 5 | . 4 . . . 4 5 4 3 . 3 3 2 2 Combat Bots Only 4 | . 3 . . . 4 4 4 3 . 3 3 . 1 Max Kills in Single Turn 2 | . 2 . . . 1 2 1 1 . 1 1 2 2 Gunslinging . | . . . . . . . . . . . . . . Exploded 1 | . . . . . . 1 . . . 1 1 . 1 Melee . | . . . . . . . . . . . . . . Uniques/NPCs Destroyed . | . . . . . . . . . . . . . . Combat | -11 -10 -10 -10 -9 -8 -7 -7 -7 -7 -6 -6 -5 -4 -------- Run | Yrd Mat Min Exi Min Mat Fac Low Low Dat Pro Fac Fac Fac Hostile Shots Fired 759 | . 28 . . . 40 331 104 19 . 103 118 . 16 Missed 289 | . 10 . . . 11 126 32 4 . 25 69 . 12 Hits 470 | . 18 . . . 29 205 72 15 . 78 49 . 4 Melee 18 | . . . . . . 9 . 3 . 6 . . . Projectile 452 | . 18 . . . 29 196 72 12 . 72 49 . 4 Critical Strikes 12 | . . . . . 1 4 . 1 . 5 . . 1 Actively Blocked 1 | . . . . . . . . . . . . . 1 Damage Taken 5947 | . 173 . . . 371 2103 839 300 . 1508 577 . 76 Core 849 | . 28 . . . 90 209 60 22 . 271 148 . 21 Absorbed by Shields 289 | . . . . . . 177 112 . . . . . . Redirected to Shielding 188 | . . . . . . 13 11 24 . 85 55 . . Ignored by Resistances 97 | . . . . . 4 93 . . . . . . . Regen/Repaired (Parts) 290 | . . . . . . 290 . . . . . . . Core Remaining (%) 78 | 100 . . . 88 83 . . . . 19 82 100 . Volleys Fired 482 | . 25 . . . 79 203 32 36 . 51 54 1 1 Largest 2 | . 2 . . . 2 2 1 2 . 2 1 1 1 Hottest 77 | . 40 . . . 62 65 40 77 . 77 36 36 36 Shots Fired 743 | . 50 . . . 142 337 33 64 . 61 54 1 1 Gun 253 | . 50 . . . 70 133 . . . . . . . Cannon 426 | . . . . . 72 204 33 64 . 53 . . . Launcher 64 | . . . . . . . . . . 8 54 1 1 Special . | . . . . . . . . . . . . . . Kinetic 679 | . 50 . . . 142 337 33 64 . 53 . . . Thermal . | . . . . . . . . . . . . . . Explosive . | . . . . . . . . . . . . . . Electromagnetic 64 | . . . . . . . . . . 8 54 1 1 Robot Hit Streak 21 | . 10 . . . 13 21 15 20 . 13 4 5 6 Robot Miss Streak 6 | . 6 . . . 4 2 3 2 . 3 3 . . Penetration Max . | . . . . . . . . . . . . . . Secondary Targets . | . . . . . . . . . . . . . . Shots Hit Robots 419 | . 30 . . . 93 190 26 25 . 44 9 1 1 Core Hits 216 | . 12 . . . 44 87 15 8 . 20 26 2 2 Critical Kills . | . . . . . . . . . . . . . . Critical Parts Destroyed 1 | . . . . . 1 . . . . . . . . Critical Strikes 20 | . . . . . 2 13 . 2 . 3 . . . Destroy 1 | . . . . . 1 . . . . . . . . Blast 19 | . . . . . 1 13 . 2 . 3 . . . Melee Attacks . | . . . . . . . . . . . . . . Impact . | . . . . . . . . . . . . . . Slashing . | . . . . . . . . . . . . . . Piercing . | . . . . . . . . . . . . . . Sneak Attacks . | . . . . . . . . . . . . . . Combat Hostiles . | . . . . . . . . . . . . . . Follow-up Attacks . | . . . . . . . . . . . . . . Damage Inflicted 11129 | . 370 . . . 1994 4806 688 618 . 1383 980 58 232 Guns 2888 | . 370 . . . 871 1647 . . . . . . . Cannons 6289 | . . . . . 1062 2785 686 618 . 1138 . . . Explosions 1947 | . . . . . 58 374 . . . 245 980 58 232 Melee . | . . . . . . . . . . . . . . Ramming 5 | . . . . . 3 . 2 . . . . . . Kinetic 9177 | . 370 . . . 1933 4432 686 618 . 1138 . . . Thermal 656 | . . . . . . 374 . . . . 105 . 177 Explosive . | . . . . . . . . . . . . . . Electromagnetic 1291 | . . . . . 58 . . . . 245 875 58 55 Impact . | . . . . . . . . . . . . . . Slashing . | . . . . . . . . . . . . . . Piercing . | . . . . . . . . . . . . . . Highest Corruption 22 | . . . . . . 4 4 8 8 22 . . . Average Corruption 5 | . . . . . . 1 4 6 8 15 . . . Corruption Purged 2 | . . . . . . 2 . . . . . . . Corruption Blocked . | . . . . . . . . . . . . . . Effects 84 | . . . . . . 17 20 19 3 25 . . . Message Errors 23 | . . . . . . 5 8 3 1 6 . . . Matter Fused 25 | . . . . . . 3 3 9 1 9 . . . Heat Flow Errors 6 | . . . . . . . 2 3 . 1 . . . Energy Discharges 6 | . . . . . . 1 2 . 1 2 . . . Parts Rejected 2 | . . . . . . . 1 . . 1 . . . Parts Fused 1 | . . . . . . . . . . 1 . . . Data Loss (minor) 10 | . . . . . . 5 2 . . 3 . . . Data Loss (major) 3 | . . . . . . 1 1 1 . . . . . Misfires 5 | . . . . . . 2 1 1 . 1 . . . Alerts 1 | . . . . . . . . 1 . . . . . Weapon Failures 2 | . . . . . . . . 1 . 1 . . . Overload Shots . | . . . . . . . . . . . . . . Overflow Damage 133 | . . . . . 12 34 . 10 . 16 61 . . Projectiles 62 | . . . . . 12 24 . 10 . 16 . . . Explosions 71 | . . . . . . 10 . . . . 61 . . Melee . | . . . . . . . . . . . . . . Knockbacks 34 | . . . . . 3 14 1 4 . 12 . . . Impact 1 | . . . . . 1 . . . . . . . . Kinetic 33 | . . . . . 2 14 1 4 . 12 . . . Secondary . | . . . . . . . . . . . . . . Self-Inflicted Damage 129 | . . . . . . . . . . 47 82 . . Shots 9 | . . . . . . . . . . 4 5 . . Rammed 3 | . . . . . 1 . 2 . . . . . . Targets Rammed 3 | . . . . . 1 . 2 . . . . . . Kicked . | . . . . . . . . . . . . . . Crushed . | . . . . . . . . . . . . . . Highest Temperature 236 | . 3 . . . 131 128 161 209 . 236 72 . . Average Temperature 40 | . 3 . . . 29 30 32 44 . 92 25 . . Received Heat Transfer 1363 | . 54 . . . 180 379 78 18 . 597 57 . . Siege Activations . | . . . . . . . . . . . . . . Martial Activations . | . . . . . . . . . . . . . . Shielding Activations . | . . . . . . . . . . . . . . Robots Disrupted . | . . . . . . . . . . . . . . Combat Hostiles . | . . . . . . . . . . . . . . Robots Corrupted 3 | . . . . . . . . . . 1 2 . . Combat Hostiles 3 | . . . . . . . . . . 1 2 . . Parts Fried 8 | . . . . . . . . . . . 8 . . Impact Corruptions . | . . . . . . . . . . . . . . Robots Melted . | . . . . . . . . . . . . . . Combat Hostiles . | . . . . . . . . . . . . . . Parts Melted . | . . . . . . . . . . . . . . Heat Transferred 450 | . . . . . . 250 . . . . 100 . 100 Parts Sabotaged . | . . . . . . . . . . . . . . Parts Stolen . | . . . . . . . . . . . . . . Parts Stripped . | . . . . . . . . . . . . . . Power Chain Reactions 2 | . . . . . . . . . . . 1 1 . Alert | -11 -10 -10 -10 -9 -8 -7 -7 -7 -7 -6 -6 -5 -4 ------- Run | Yrd Mat Min Exi Min Mat Fac Low Low Dat Pro Fac Fac Fac Maximum Alert Level 3 | . . . . . 1 3 . . . . 1 1 1 Low Security (%) 66 | 100 100 100 . 100 97 52 . . . . 88 25 35 Level 1 9 | . . . . . 2 9 . . . . 11 75 64 Level 2 15 | . . . . . . 25 . . . . . . . Level 3 7 | . . . . . . 12 . . . . . . . Level 4 . | . . . . . . . . . . . . . . Level 5 . | . . . . . . . . . . . . . . High Security . | . . . . . . . . . . . . . . Max Security . | . . . . . . . . . . . . . . Peak Influence 899 | . 70 1 . . 207 899 . . . . 238 305 383 Initial 124 | . . 1 . . . 91 . . . . 4 112 124 Average 215 | . 23 . . . 86 294 . . . . 83 237 245 Influence Increases 4013 | . 155 . . . 714 1388 270 100 . 370 444 233 339 Destroy 0b10 Robot/C 1980 | . 100 . . . 420 720 240 80 . 280 120 . 20 Destroy 0b10 Robot/NC 190 | . 15 . . . 35 100 . . . . 25 10 5 Destroy Leader 544 | . 24 . . . 122 256 30 20 . 40 42 . 10 Allied During Kill 8 | . . . . . 3 . . . . 5 . . . Successful Hack 54 | . . . . . 43 11 . . . . . . . Disable Machine 300 | . . . . . 30 165 . . . . 90 . 15 Anti-Garrison Action 400 | . . . . . . . . . . . . 200 200 Destroy Structure 192 | . 1 . . . 16 91 . . . . 32 8 44 Partial Spotted 45 | . . . . . 15 . . . . . 15 15 . Lose Combat Pursuer 300 | . 15 . . . 30 45 . . . 45 120 . 45 Influence Decreases 3630 | . 150 5 . . 511 692 739 360 170 363 221 208 211 Entered New Map 953 | . . 4 . . . 112 333 82 170 . 3 118 131 Time Decay 2367 | . 150 1 . . 511 550 356 238 . 223 178 90 70 Lost Part 290 | . . . . . . 30 50 40 . 120 40 . 10 Lost Ally 20 | . . . . . . . . . . 20 . . . Squads Dispatched 27 | . . . . . 2 18 . . . . 4 1 2 Investigation 4 | . . . . . . 1 . . . . 1 1 1 Extermination 11 | . . . . . . 10 . . . . 1 . . Reinforcement 8 | . . . . . 2 3 . . . . 2 . 1 Assault 4 | . . . . . . 4 . . . . . . . Garrison . | . . . . . . . . . . . . . . Intercept . | . . . . . . . . . . . . . . Searches Triggered . | . . . . . . . . . . . . . . Data Miner Redirects 1 | . . . . . . . . . . . . 1 . Construction Impeded 1 | . . . . . . . . . . . 1 . . Haulers Reinforced 2 | . . . . . . 1 . . . . 1 . . Active Scanning Responses . | . . . . . . . . . . . . . . Cargo Convoy Interrupts . | . . . . . . . . . . . . . . Stealth | -11 -10 -10 -10 -9 -8 -7 -7 -7 -7 -6 -6 -5 -4 --------- Run | Yrd Mat Min Exi Min Mat Fac Low Low Dat Pro Fac Fac Fac Distress Signals 6 | . . . . . 2 3 . . . . 1 . . Communications Jammed 12 | . . . . . . 11 . . . . 1 . . Distress Signals 12 | . . . . . . 11 . . . . 1 . . Times Spotted 144 | . 8 . . . 30 48 12 4 . 17 16 . 9 Peak Tracking Total 5 | . 3 . . . 4 5 4 1 . 4 3 . 3 Tactical Retreats 15 | . 1 . . . 2 4 . . . 2 5 . 1 ECM-based Alert Blocks 2 | . . . . . . 2 . . . . . . . Traps | -11 -10 -10 -10 -9 -8 -7 -7 -7 -7 -6 -6 -5 -4 ------- Run | Yrd Mat Min Exi Min Mat Fac Low Low Dat Pro Fac Fac Fac Traps Triggered 1 | . . . . . . 1 . . . . . . . Indirectly . | . . . . . . . . . . . . . . Trap Hack Attempts . | . . . . . . . . . . . . . . Triggered . | . . . . . . . . . . . . . . Disarmed . | . . . . . . . . . . . . . . Reprogrammed . | . . . . . . . . . . . . . . Reused 1 | . . . . . . . . . . 1 . . . Traps Extracted . | . . . . . . . . . . . . . . Installed 1 | . . . . . . . . . . 1 . . . Triggered 1 | . . . . . . . . . . 1 . . . Most Traps Carried 1 | . . . . . . . . 1 1 1 . . . Machines | -11 -10 -10 -10 -9 -8 -7 -7 -7 -7 -6 -6 -5 -4 ---------- Run | Yrd Mat Min Exi Min Mat Fac Low Low Dat Pro Fac Fac Fac Machines Disabled 20 | . . . . . 2 11 . . . . 6 . 1 Max in Single Turn 4 | . . . . . 1 2 . . . . 4 . 1 Garrison Access 2 | . . . . . . . . . . . . 1 1 Machines Repaired . | . . . . . . . . . . . . . . Machines Dismantled . | . . . . . . . . . . . . . . Machines Sabotaged . | . . . . . . . . . . . . . . Overloaded Fab Kills . | . . . . . . . . . . . . . . Hacking | -11 -10 -10 -10 -9 -8 -7 -7 -7 -7 -6 -6 -5 -4 --------- Run | Yrd Mat Min Exi Min Mat Fac Low Low Dat Pro Fac Fac Fac Machines Accessed 42 | . 2 . 1 . 10 20 1 . 4 . 1 2 1 Terminals 22 | . 2 . . . 9 10 . . . . . 1 . Fabricators . | . . . . . . . . . . . . . . Repair Stations 4 | . . . . . . 3 . . . . 1 . . Recycling Units 2 | . . . . . . 2 . . . . . . . Scanalyzers 3 | . . . . . 1 2 . . . . . . . Garrison Access 5 | . . . . . . 3 . . . . . 1 1 Total Hacks 114 | . 3 . 1 . 30 35 1 . 32 . 3 5 4 Successful 67 | . 1 . 1 . 17 12 1 . 32 . 1 1 1 Failed 46 | . 2 . . . 13 22 . . . . 2 4 3 Catastrophic 15 | . 1 . . . 4 10 . . . . . . . Database Lockouts 1 | . . . . . . 1 . . . . . . . Manual 32 | . 2 . 1 . 13 7 . . . . . 5 4 Terminals 45 | . 3 . . . 26 14 . . . . . 2 . Fabricators . | . . . . . . . . . . . . . . Repair Stations 11 | . . . . . . 8 . . . . 3 . . Recycling Units 5 | . . . . . . 5 . . . . . . . Scanalyzers 6 | . . . . . 4 2 . . . . . . . Garrison Access 13 | . . . . . . 6 . . . . . 3 4 Terminal Hacks 49 | . 1 . 1 . 12 2 1 . 32 . . . . Record 11 | . . . . . . . . . 11 . . . . Part Schematic 12 | . . . . . . . . . 12 . . . . Robot Schematic 6 | . . . . . . . . . 6 . . . . Robot Analysis 1 | . . . . . 1 . . . . . . . . Prototype ID Bank 4 | . . . . . 1 . . . 3 . . . . Open Door 1 | . . . . . . . 1 . . . . . . Branch Access Points 1 | . . . . . 1 . . . . . . . . Terminal Index 1 | . . . . . 1 . . . . . . . . Locate Traps 4 | . 1 . . . 1 2 . . . . . . . Recall Investigation 1 | . . . . . 1 . . . . . . . . Recall Reinforcements 1 | . . . . . 1 . . . . . . . . Zone Layout 5 | . . . . . 5 . . . . . . . . Proto ID Catalog 1 | . . . 1 . . . . . . . . . . Fabricator Hacks . | . . . . . . . . . . . . . . Repair Station Hacks 8 | . . . . . . 7 . . . . 1 . . Scan Component 5 | . . . . . . 4 . . . . 1 . . Repair 3 | . . . . . . 3 . . . . . . . Recycling Unit Hacks 2 | . . . . . . 2 . . . . . . . Process 1 | . . . . . . 1 . . . . . . . Retrieve Matter 1 | . . . . . . 1 . . . . . . . Scanalyzer 4 | . . . . . 3 1 . . . . . . . Retrieve Study 4 | . . . . . 3 1 . . . . . . . Garrison Access Hacks . | . . . . . . . . . . . . . . Unauthorized Hacks 4 | . . . . . 2 . . . . . . 1 1 Terminals 2 | . . . . . 2 . . . . . . . . Botnet 1 | . . . . . 1 . . . . . . . . Operators 1 | . . . . . 1 . . . . . . . . Fabricators . | . . . . . . . . . . . . . . Repair Stations . | . . . . . . . . . . . . . . Recycling Units . | . . . . . . . . . . . . . . Scanalyzers . | . . . . . . . . . . . . . . Garrison Access 2 | . . . . . . . . . . . . 1 1 Jam 2 | . . . . . . . . . . . . 1 1 Data Cores Recovered . | . . . . . . . . . . . . . . Used . | . . . . . . . . . . . . . . Hacking Detections 34 | . 2 . . . 10 18 . . . . 1 2 1 Full Trace Events 1 | . . . . . . 1 . . . . . . . Feedback Events . | . . . . . . . . . . . . . . Feedback Blocked . | . . . . . . . . . . . . . . Robot Schematics Acquired 6 | . . . . . . . . . 6 . . . . Robots Built . | . . . . . . . . . . . . . . Authchips . | . . . . . . . . . . . . . . Time . | . . . . . . . . . . . . . . Total Robot Build Rating . | . . . . . . . . . . . . . . Part Schematics Acquired 12 | . . . . . . . . . 12 . . . . Parts Built . | . . . . . . . . . . . . . . Authchips . | . . . . . . . . . . . . . . Time . | . . . . . . . . . . . . . . Total Part Build Rating . | . . . . . . . . . . . . . . Part Studies Acquired 4 | . . . . . 3 1 . . . . . . . Parts Repaired 3 | . . . . . . 3 . . . . . . . Time 120 | . . . . . . 120 . . . . . . . Parts Recycled . | . . . . . . . . . . . . . . Recycled Matter 188 | . . . . . . 188 . . . . . . . Retrieved Matter 188 | . . . . . . 188 . . . . . . . Retrieved Components . | . . . . . . . . . . . . . . Parts Scanalyzed . | . . . . . . . . . . . . . . Part Schematics Acquired . | . . . . . . . . . . . . . . Parts Damaged . | . . . . . . . . . . . . . . Bothacking | -11 -10 -10 -10 -9 -8 -7 -7 -7 -7 -6 -6 -5 -4 ------------ Run | Yrd Mat Min Exi Min Mat Fac Low Low Dat Pro Fac Fac Fac Used RIF Installer . | . . . . . . . . . . . . . . Robots Hacked . | . . . . . . . . . . . . . . Non-combat . | . . . . . . . . . . . . . . Combat . | . . . . . . . . . . . . . . Robot Hacks Applied . | . . . . . . . . . . . . . . Relay Couplers Released . | . . . . . . . . . . . . . . Fabnet Peak Effective % . | . . . . . . . . . . . . . . Robots Rewired . | . . . . . . . . . . . . . . Allies Hacked . | . . . . . . . . . . . . . . Hacks Repelled . | . . . . . . . . . . . . . . Allies | -11 -10 -10 -10 -9 -8 -7 -7 -7 -7 -6 -6 -5 -4 -------- Run | Yrd Mat Min Exi Min Mat Fac Low Low Dat Pro Fac Fac Fac Total Allies 2 | . . . . 1 . . . . . 1 . . . Largest Group 1 | . . . . 1 1 . . . . 1 . . . Highest-Rated Group 96 | . . . . 31 31 . . . . 96 . . . Highest-Rated Ally 96 | . . . . 31 31 . . . . 96 . . . Total Orders . | . . . . . . . . . . . . . . Ally Attacks 16 | . . . . . 5 . . . . 11 . . . Total Damage 390 | . . . . . 60 . . . . 330 . . . Kills 2 | . . . . . 1 . . . . 1 . . . Allies Corrupted 1 | . . . . . . . . . . 1 . . . Allies Melted . | . . . . . . . . . . . . . . Intel | -11 -10 -10 -10 -9 -8 -7 -7 -7 -7 -6 -6 -5 -4 ------- Run | Yrd Mat Min Exi Min Mat Fac Low Low Dat Pro Fac Fac Fac Active Infowar (turns) 9663 | . . . . . 1835 5742 812 256 . 226 447 192 153 Optics 46 | . . . . . . . . . . . 46 . . T.N.C. 8638 | . . . . . 1835 5742 812 249 . . . . . Jamming 4246 | . . . . . . 2160 812 256 . 226 447 192 153 ECM 36 | . . . . . . 35 . . . 1 . . . Robot Analysis Total 1 | . . . . . 1 . . . . . . . . Derelict Logs Recovered 3 | . . . . . . . 2 . . 1 . . . Drone Launches . | . . . . . . . . . . . . . . Drone Recoveries . | . . . . . . . . . . . . . . Exploration | -11 -10 -10 -10 -9 -8 -7 -7 -7 -7 -6 -6 -5 -4 ------------- Run | Yrd Mat Min Exi Min Mat Fac Low Low Dat Pro Fac Fac Fac Turns Passed 11672 | 64 594 29 414 27 2055 5742 812 514 100 526 450 192 153 Spaces Moved 6845 | 53 199 19 257 17 943 2764 541 351 88 360 609 362 282 Core 32 | 29 . . . . . . 2 . . 1 . . . Treads 4506 | 24 199 19 257 17 943 2764 283 . . . . . . Legs . | . . . . . . . . . . . . . . Wheels 784 | . . . . . . . 256 351 88 89 . . . Hover 1523 | . . . . . . . . . . 270 609 362 282 Flight . | . . . . . . . . . . . . . . Fastest Speed 22 | 50 160 160 160 160 160 160 98 100 105 30 22 38 33 Average Speed 130 | 99 160 160 160 160 160 163 134 110 105 97 38 38 42 Slowest Speed 700 | 160 160 160 160 160 160 200 700 115 105 500 45 38 105 Overloaded Moves 19 | . . . . . . . . . . 3 12 . 4 Propulsion Burnouts . | . . . . . . . . . . . . . . Robots Hopped . | . . . . . . . . . . . . . . Potential Cave-ins 4 | . . . . . 2 2 . . . . . . . Cave-ins Triggered . | . . . . . . . . . . . . . . Exploration Rate (%) 38 | 3 35 15 59 11 70 68 73 55 68 52 14 8 12 Regions Visited 13 Branch Regions 7 Pre-discovered Areas 3 | . . . . . . . 1 . 1 1 . . . Known Exits Taken 1 | . . . . . . . . . . . . 1 . Unknown Exits Taken 12 | 1 1 1 1 1 1 1 1 1 1 1 1 . . Scrap Searched 10 | . . . . . . . 4 4 . 2 . . . Spaces Dug 57 | . . . . . 6 41 . 10 . . . . . Terrain Destroyed 223 | . . . . . 15 101 12 25 . 11 34 4 21 Melee . | . . . . . . . . . . . . . . Projectile 150 | . . . . . 15 87 12 25 . 11 . . . AOE 73 | . . . . . . 14 . . . . 34 4 21 Terrain Rammed . | . . . . . . . . . . . . . . Walls Destroyed . | . . . . . . . . . . . . . . Machines Disabled . | . . . . . . . . . . . . . . Actions | -11 -10 -10 -10 -9 -8 -7 -7 -7 -7 -6 -6 -5 -4 --------- Run | Yrd Mat Min Exi Min Mat Fac Low Low Dat Pro Fac Fac Fac Total 8931 | 63 425 18 260 17 1382 3698 588 412 97 470 774 414 313 Wait 1323 | . 188 . 1 1 305 612 7 14 . 41 84 45 25 Move 6832 | 52 198 18 256 16 942 2763 540 350 87 359 608 361 282 Hop . | . . . . . . . . . . . . . . Pick Up 74 | 5 9 . 2 . 17 19 . 1 4 2 10 2 3 Fast Attach 40 | 2 1 . . . 2 23 5 5 . 2 . . . Attach 37 | 4 . . . . 4 2 . 1 2 11 9 2 2 Detach 5 | . . . . . . 1 . 1 . 1 2 . . Swap 56 | . 2 . . . 13 32 1 2 . 2 2 2 . Drop 78 | . 2 . 1 . 19 43 1 2 4 . 5 1 . Fire 482 | . 25 . . . 79 203 32 36 . 51 54 1 1 Melee . | . . . . . . . . . . . . . . Ram . | . . . . . . . . . . . . . . Kick . | . . . . . . . . . . . . . . Crush 3 | . . . . . 1 . 2 . . . . . . Escape Stasis . | . . . . . . . . . . . . . . Rewire . | . . . . . . . . . . . . . . Trap 1 | . . . . . . . . . . 1 . . . Miscellaneous . | . . . . . . . . . . . . . . Route ------- -11/Scrapyard -10/Materials -10/Mines -10/Exiles -9/Mines -8/Materials (discovered 2 exits: *Fac x2) -7/Factory (discovered 3 exits: *Fac x2 / *Low) -7/Lower Caves -7/Lower Caves -7/Data Miner -6/Proximity Caves -6/Factory -5/Factory -4/Factory History --------- Turn | Location | Event 9 | -11/Scrapyard | Discovered new exit (range 15) 65 | -11/Scrapyard | Entered Materials 306 | -10/Materials | Build established: Mutant 560 | -10/Materials | Discovered new exit (range 14) 659 | -10/Materials | Entered Mines 680 | -10/Mines | Deemed a non-threat by the Exiles lab entrance 682 | -10/Mines | Discovered new exit (range 5) 688 | -10/Mines | Entered Exiles 727 | -10/Exiles | Met 8R-AWN 754 | -10/Exiles | Met EX-HEX 797 | -10/Exiles | Met EX-BIN 816 | -10/Exiles | Aligned with FarCom system 818 | -10/Exiles | Given EX-Vault access code 856 | -10/Exiles | Opened EX-Vault 870 | -10/Exiles | Found Modified TNC 902 | -10/Exiles | Warned to stay clear of 0b10 Research branches 950 | -10/Exiles | Met EX-DEC 1006 | -10/Exiles | Discovered new exit (range 11) 1102 | -10/Exiles | Left Exiles lab with Modified TNC 1102 | -10/Exiles | Entered Mines 1105 | -9/Mines | Received a Mining Laser from a helpful Derelict 1115 | -9/Mines | Discovered new exit (range 8) 1129 | -9/Mines | Entered Materials 1129 | -8/Materials | Accompanied by 1 ally 1129 | -8/Materials | Evolved 4 slots: Propulsion x1, Utility x3 1566 | -8/Materials | Discovered new exit (range 4) 2736 | -8/Materials | Discovered new exit (range 8) 3184 | -8/Materials | Entered Factory 3184 | -7/Factory | Evolved 2 slots: Utility x2 3942 | -7/Factory | Discovered new exit (range 5) 4136 | -7/Factory | Discovered new exit (range 5) 5244 | -7/Factory | Central database locked down 5304 | -7/Factory | Discovered new exit (range 10) 6854 | -7/Factory | Repaired Gauss Cannon+ 6887 | -7/Factory | Repaired Imp. Treads+ 8384 | -7/Factory | First assault squad dispatched 8553 | -7/Factory | Repaired Gauss Cannon+ 8926 | -7/Factory | Entered Lower Caves 9253 | -7/Lower Caves | Attracted the attention of an 0b10 outpost 9419 | -7/Lower Caves | Attracted the attention of an 0b10 checkpoint 9477 | -7/Lower Caves | Lost 4 parts (3n1u) 9532 | -7/Lower Caves | Encountered a Warlord checkpoint 9541 | -7/Lower Caves | Learned Factory trap positions 9736 | -7/Lower Caves | Discovered new exit (range 4) 9738 | -7/Lower Caves | Entered another Lower Caves area 10018 | -7/Lower Caves | Lost 3 parts (1p2u) 10165 | -7/Lower Caves | Build established: Derelict-Mutant 10228 | -7/Lower Caves | Encountered a Warlord checkpoint 10234 | -7/Lower Caves | Discovered new exit (range 14) 10252 | -7/Lower Caves | Entered Data Miner 10252 | -7/Data Miner | Discovered new exit (range 6) 10273 | -7/Data Miner | Met Data Miner 10292 | -7/Data Miner | Learned location of Section 7 (-2) 10292 | -7/Data Miner | Acquired the access code to Warlord's prototype stash 10311 | -7/Data Miner | Received God Mode back door access code from Data Miner 10352 | -7/Data Miner | Entered Proximity Caves 10412 | -6/Proximity Caves | Core integrity fell below 50% 10471 | -6/Proximity Caves | Lost 5 parts (1n3u1w) 10580 | -6/Proximity Caves | Escorted by Enhanced Grunt 10585 | -6/Proximity Caves | System corruption reached 10% 10614 | -6/Proximity Caves | Core integrity fell below 20% 10617 | -6/Proximity Caves | Lost 5 parts (1n3u1w) 10738 | -6/Proximity Caves | Spotted B-75 Beast 10838 | -6/Proximity Caves | Learned location of Zion (-6) 10876 | -6/Proximity Caves | Discovered new exit (range 5) 10878 | -6/Proximity Caves | Entered Factory 10878 | -6/Factory | Evolved 2 slots: Power x1, Propulsion x1 10879 | -6/Factory | Loaded intel: 124 trap records 11154 | -6/Factory | Build established: Mutant 11319 | -6/Factory | Discovered new exit (range 15) 11328 | -6/Factory | Entered another Factory area 11328 | -5/Factory | Evolved 2 slots: Propulsion x2 11344 | -5/Factory | Spotted B-75 Beast 11401 | -5/Factory | Incoming investigation squad redirected 11485 | -5/Factory | Discovered new exit (range 5) 11520 | -5/Factory | Identified exit to Factory 11520 | -5/Factory | Entered another Factory area 11520 | -4/Factory | Evolved 2 slots: Utility x2 11673 | -4/Factory | Self-destructed Last Messages --------------- 11570_ Acquired Hrd. Medium Armor Plating. 11574_ Connecting with Garrison Access... >>Force(Jam) ACCESS_DOOR_JAMMED 11574_ ALERT: Suspicious activity at Garrison Access F003. Dispatching Investigation squad. 11578_ K-01 Serf pushes S-27 Virus. 11602_ Acquired Graphene Brace. 11612_ K-01 Serf cleans the Power Conduit. 11629_ Power Conduit explodes. 11629_ K-01 Serf destroyed. 11629_ G-67 Veteran destroyed. 11630_ Cld. Airjet destroyed. 11633_ U-05 Engineer builds a Wall. 11634_ U-05 Engineer lays Concrete. 11636_ R-10 Processor suffers critical hit (Burn). 11647_ K-01 Serf collects debris. 11662_ ALERT: Suspicious intruders detected, dispatching Specialist reinforcements to area. Map ----- +----------------------------------------------------+ | ?????????????????????????????????????????????????? | | ?????????????????????????????????????????????????? | | ?????????????????????????????????????????????????? | | ?????????????????????????????????????????????????? | | ?????????????????????????????????????????????????? | | ?????????????????????????????????????????????????? | | ?????????????????????????????????????????????????? | | ?????????????????????????????????????????????????? | | ?????????????????????????????????????????????????? | | ?????????????????????????????????????????????????? | | ?????????????????????????????????????????????????? | | ?????????????????????????????????????????????????? | | ??????????????????????????????????H??????????????? | | ?????????????????????????????????????????????????? | | ?????????????????????????????????????????????????? | | ?????????????????????????????????????????????????? | | ?????????????????????????????????????????????????? | | ?????????????????????????????????????????????????? | | ?????????????????????????????????????????????????? | | ???????????????????????????????????????########### | | ???????????????????????????????????????# | | ???????????????????????????????????????# | | ??????????????????????################## | | ?????????????????????x# x + | | ??????????????????????# ##;########### # | | ??????????????????????? #@ # # | | ??????????????????????? # # # | | ??????????????????????? # # ########### | | ??????????????????????? # # #?????????? | | ??????????????????????? # g #?????????? | | ??????????????????????? # g#+######????? | | ??????????????????????# # # ! #????? | | ??????????????????????# # # #????? | | ??????????????????????# # # #????? | | ??????????????????????# # k # #????? | | ??????????????????????# # # #????? | | ??????????????????????# # g # #????? | | ??????????????????????# #######+#+###########????? | | ??????????????????????+ #??????????????? | | ??????????????????????# ##### #??????????????? | | ??????????????????????# #???# #??????????????? | | ??????????????????????# #???# #??????????????? | | ???????????????########+##### #??????????????? | | ???????????????# # #??????????????? | | ???????????????# # #??????????????? | | ???????????????# # #??????????????? | | ???????????????# ] [ # #??????????????? | | ???????????????# # #??????????????? | | ???????????????# / #??????????????? | | ???????????????# # #??????????????? | +----------------------------------------------------+ Best States ------------- Heat Dissipation 64 Energy Generation 37 Energy Capacity 330 Matter Stores 300 Matter Capacity 300 Sight Range 22 Terrain Scan Density 10 ECM Strength 2 Jamming Range 12 Power Amplification 60 Additional Mass Support 9 Armor Coverage 525 Resistance: KI 30 Resistance: TH 10 Power Shielding 66 Weapon Shielding 66 Evasion (%) 65 Targeting Accuracy 10 Melee Accuracy 6 Target Analysis 5 Core Analysis 6 Recoil Reduction 3 Energy Filtering 45 Offensive Hacking 10 Trap Extractor Capacity 6 Item Schematics ----------------- Combat Drone Bay | -7/Data Miner | Free Lgt. Regenerative Plating | -7/Data Miner | Free Biomechanical Wings | -7/Data Miner | Free Gravity Neutralizer | -7/Data Miner | Free Cld. Plasma Cannon | -7/Data Miner | Free Antigrav System | -7/Data Miner | Free Lyr. Heavy Armor Plating | -7/Data Miner | Free Hyp. Coil Gun | -7/Data Miner | Free Remote Shield | -7/Data Miner | Free Adv. Trap Extractor | -7/Data Miner | Free Imp. Linear Gravjet | -7/Data Miner | Free Adv. Thermal Generator | -7/Data Miner | Free Robot Schematics ------------------ Y-54 Guardian | -7/Data Miner | Free H-55 Commando | -7/Data Miner | Free R-10 Processor | -7/Data Miner | Free S-27 Virus | -7/Data Miner | Free P-60 Hacker | -7/Data Miner | Free M-22 Extractor | -7/Data Miner | Free Fabricated ------------ Nothing Repaired ---------- Gauss Cannon | 45% | -7/Factory Imp. Treads | 63% | -7/Factory Gauss Cannon | 17% | -7/Factory Studied --------- Assault Cannon | -8/Materials | Hacked Lgt. Treads | -8/Materials | Hacked Imp. Treads | -8/Materials | Hacked Gauss Cannon | -7/Factory | Hacked Alien Tech Used ----------------- None Achievements -------------- None Challenges ------------ None Game ------ Seed PropulsionHellfirePendant Manual? 0 Play Time 02:03:25 Cumulative 112.1 hours Start 2026.04.07 @ 17:28:01 End 2026.04.07 @ 21:16:00 Sessions 1 Manual Loads 0 Difficulty Rogue Special Mode None Game No. 84 Rogue 84 Adventurer 0 Explorer 0 Win Type - Total 1 Types 0/0/0/1/0/0/0/0/0/0 Lore% 45 Gallery% 50 Achievement% 48 Wizard Run 0 Options --------- Layout 2 ASCII 0 Keyboard 0 Movement Mouse Keybinds 0 Fullscreen 1 Font 48/Smallcaps Map View 50x44 Zoom Use 0% Tactical HUD 1 Map Filters NONE Filters NONE Steam 1 RUN: a3b4530c-9d54-402e-a3f8-545eca590d52